bitfinex/quotes_BTCUSD_20260308
["timestamp","ask_amount","ask_price","bid_price","bid_amount"]
[1772970456602,0.07404968,67523.0,67515.0,0.07405656]
[1772970457775,0.07404968,67523.0,67509.0,0.14809842]
[1772970457776,0.07404968,67523.0,67482.0,0.0004406]
[1772970457777,0.16031268,67509.0,67482.0,0.0004406]
[1772970457980,0.149339,67484.0,67482.0,0.0004406]
[1772970458386,0.0234123,67510.0,67484.0,0.02221553]
[1772970458586,0.16031268,67506.0,67482.0,0.07453362]
[1772970458798,0.02619634,67503.0,67485.0,0.00148]
[1772970459005,0.02619634,67499.0,67480.0,0.0002]
[1772970459148,0.16031268,67496.0,67472.0,0.07430454]
[1772970459352,0.00148,67498.0,67474.0,0.00148]
[1772970459353,0.16031268,67492.0,67474.0,0.00148]
[1772970459552,0.02619634,67489.0,67474.0,0.00148]
[1772970459758,0.16031268,67486.0,67474.0,0.00148]
[1772970459969,0.02619634,67483.0,67472.0,0.07430449]
[1772970460161,0.00148,67491.0,67472.0,0.07430449]
[1772970460162,0.02619634,67481.0,67473.0,0.00148]
[1772970460595,0.02619634,67479.0,67473.0,0.00148]
[1772970463479,0.02619634,67479.0,67472.0,0.00148]
[1772970464429,0.07409822,67478.0,67472.0,0.00148]
[1772970466855,0.16031268,67475.0,67462.0,0.07411579]
[1772970467035,0.02619634,67473.0,67462.0,0.07411579]
[1772970467665,0.02619634,67473.0,67463.0,0.00148]
[1772970468027,0.02619634,67471.0,67463.0,0.00148]
[1772970468687,0.07410701,67470.0,67463.0,0.00148]
[1772970469002,0.02619634,67469.0,67463.0,0.00148]
[1772970469208,0.02604367,67469.0,67463.0,0.00148]
[1772970469413,0.02619634,67467.0,67450.0,0.07412896]
[1772970469618,0.02619634,67467.0,67450.0,0.10087738]
[1772970470037,0.02619634,67466.0,67450.0,0.10087738]
[1772970470319,0.16031268,67466.0,67450.0,0.10087738]
[1772970470520,0.02619634,67465.0,67450.0,0.10107578]
[1772970471135,0.02619634,67463.0,67450.0,0.10107578]
[1772970471935,0.02604369,67463.0,67450.0,0.10107578]
[1772970472330,0.02589102,67463.0,67450.0,0.07444697]
[1772970473079,0.10030005,67474.0,67454.0,0.02662881]
[1772970473228,0.10030005,67474.0,67453.0,0.07412568]
[1772970473229,0.07410371,67474.0,67457.0,0.14809842]
[1772970473439,0.07410371,67474.0,67460.0,0.02662881]
[1772970473639,0.07410371,67474.0,67461.0,0.02810881]
[1772970474143,0.02619634,67473.0,67461.0,0.00148]
[1772970475442,0.07410481,67472.0,67462.0,0.07411579]
[1772970479301,0.07450226,67475.0,67463.0,0.02662881]
[1772970479525,0.07450226,67475.0,67464.0,0.0741136]
[1772970480114,0.1006986,67475.0,67464.0,0.0741136]
[1772970480939,0.02619634,67474.0,67464.0,0.0741136]
[1772970481138,0.00022001,67473.0,67464.0,0.0741136]
[1772970481497,0.00022001,67473.0,67464.0,0.02662881]
[1772970482744,0.07432393,67473.0,67464.0,0.02662881]
[1772970482949,0.07432393,67473.0,67463.0,0.0741136]
[1772970483148,0.10052027,67473.0,67463.0,0.0741136]
[1772970483587,0.07432393,67473.0,67463.0,0.0741136]
[1772970485497,0.07432393,67473.0,67462.0,0.07411579]
[1772970485687,0.02895094,67472.0,67462.0,0.07411579]
[1772970487804,0.07410591,67471.0,67462.0,0.07411579]
[1772970488450,0.07395591,67472.0,67463.0,0.06623589]
[1772970488645,0.07395591,67472.0,67463.0,0.06771589]
[1772970489855,0.07395591,67472.0,67465.0,0.06623589]
[1772970490412,0.07395591,67472.0,67464.0,0.0741136]
[1772970492060,0.07395591,67472.0,67463.0,0.07559419]
[1772970493054,0.07395591,67472.0,67464.0,0.06644472]
[1772970493498,0.07395591,67472.0,67463.0,0.07559419]
[1772970494139,0.07395591,67472.0,67464.0,0.0002]
[1772970494644,0.07395591,67472.0,67465.0,0.0664758]
[1772970494992,0.07395591,67472.0,67464.0,0.0002]
[1772970495484,0.1606443,67471.0,67455.0,0.00148]
[1772970495634,0.1606443,67471.0,67453.0,0.07412494]
[1772970495843,0.1606443,67471.0,67455.0,0.00148]
[1772970496021,0.1606443,67471.0,67453.0,0.07412494]
[1772970496555,0.1591643,67469.0,67454.0,0.07560436]
[1772970496966,0.1591643,67469.0,67454.0,0.07412436]
[1772970497171,0.1591643,67469.0,67455.0,0.00148]
[1772970497467,0.1591643,67469.0,67454.0,0.07412436]
[1772970497691,0.1591643,67469.0,67450.0,0.00031961]
[1772970497877,0.1591643,67469.0,67441.0,0.07413779]
[1772970498092,0.1591643,67466.0,67445.0,0.00148]
[1772970498254,0.11678334,67467.0,67445.0,0.00148]
[1772970498255,0.1591643,67464.0,67445.0,0.00148]
[1772970498424,0.1591643,67462.0,67444.0,0.00148]
[1772970498635,0.1591643,67462.0,67443.0,0.00168]
[1772970498975,0.1591643,67461.0,67443.0,0.00168]
[1772970499448,0.14643874,67462.0,67443.0,0.00168]
[1772970499449,0.1591643,67459.0,67443.0,0.00168]
[1772970499578,0.1591643,67459.0,67439.0,0.0003211]
[1772970500371,0.1591643,67457.0,67439.0,0.0003211]
[1772970500801,0.22055893,67458.0,67440.0,0.07413997]
[1772970501143,0.07511722,67461.0,67451.0,0.06658144]
[1772970501344,0.1591643,67460.0,67443.0,0.0002]
[1772970501540,0.1591643,67458.0,67444.0,0.06658144]
[1772970501973,0.1591643,67458.0,67445.0,0.00148]
[1772970502344,0.1591643,67458.0,67444.0,0.00148]
[1772970502345,0.1591643,67456.0,67444.0,0.00148]
[1772970502543,0.1591643,67456.0,67439.0,0.0018011]
[1772970502884,0.1591643,67456.0,67439.0,0.0003211]
[1772970503186,0.1591643,67456.0,67439.0,0.07446189]
[1772970503403,0.00148,67455.0,67440.0,0.06723752]
[1772970503618,0.1591643,67454.0,67439.0,0.0003211]
[1772970503772,0.1591643,67454.0,67440.0,0.00148]
[1772970504537,0.1591643,67452.0,67440.0,0.00148]
[1772970504881,0.1591643,67452.0,67435.0,0.14286291]
[1772970505073,0.1591643,67452.0,67435.0,0.00148]
[1772970505498,0.1591643,67452.0,67435.0,0.07562545]
[1772970505682,0.1590143,67452.0,67435.0,0.00148]
[1772970506634,0.07412788,67451.0,67435.0,0.07562541]
[1772970506866,0.1591643,67450.0,67430.0,0.00575]
[1772970507137,0.1591643,67448.0,67430.0,0.00575]
[1772970507494,0.1591643,67448.0,67427.0,0.07415404]
[1772970507495,0.1591643,67448.0,67427.0,0.00148]
[1772970507687,0.1591643,67448.0,67425.0,0.0004]
[1772970507942,0.1591643,67448.0,67427.0,0.00148]
[1772970508401,0.1591643,67448.0,67428.0,0.0002]
[1772970508834,0.1591643,67446.0,67428.0,0.0002]
[1772970509563,0.07413228,67447.0,67431.0,0.06682736]
[1772970509889,0.0047645,67443.0,67433.0,0.06682736]
[1772970510916,0.07413777,67442.0,67434.0,0.06685536]
[1772970511095,0.07413599,67444.0,67436.0,0.06685536]
[1772970511235,0.1591643,67455.0,67436.0,0.06685536]
[1772970511440,0.07560532,67454.0,67437.0,0.06685536]
[1772970511854,0.07412532,67454.0,67437.0,0.06685536]
[1772970512059,0.07412458,67456.0,67440.0,0.16084946]
[1772970512423,0.07412458,67456.0,67443.0,0.16084946]
[1772970512600,0.07412458,67456.0,67444.0,0.06835871]
[1772970512750,0.07412458,67456.0,67445.0,0.07413447]
[1772970512949,0.07412044,67458.0,67447.0,0.15709809]
[1772970513207,0.07411745,67461.0,67445.0,0.07413447]
[1772970513208,0.07411799,67461.0,67448.0,0.06687871]
[1772970513603,0.07411216,67466.0,67448.0,0.06687871]
[1772970513795,0.07411313,67465.0,67451.0,0.06687871]
[1772970514009,0.07411313,67465.0,67452.0,0.00148]
[1772970514207,0.07411313,67465.0,67453.0,0.06853346]
[1772970514408,0.07423259,67465.0,67454.0,0.00148]
[1772970514617,0.07423259,67465.0,67454.0,0.06853346]
[1772970515586,0.00011946,67465.0,67455.0,0.07412348]
[1772970516111,0.16257373,67464.0,67455.0,0.07412348]
[1772970516574,0.16257373,67464.0,67454.0,0.14265705]
[1772970517825,0.07411469,67463.0,67454.0,0.14265705]
[1772970518230,0.16257373,67464.0,67454.0,0.07560359]
[1772970520919,0.16257373,67464.0,67451.0,0.0669922]
[1772970520920,0.16257373,67462.0,67451.0,0.0669922]
[1772970521125,0.16257373,67462.0,67452.0,0.00148]
[1772970522122,0.07411469,67463.0,67453.0,0.06723752]
[1772970522123,0.07559469,67463.0,67453.0,0.06723752]
[1772970522405,0.16257373,67462.0,67452.0,0.00148]
[1772970523025,0.07411689,67461.0,67452.0,0.00148]
[1772970523230,0.23669062,67461.0,67450.0,0.07412835]
[1772970523434,0.23669062,67461.0,67451.0,0.00148]
[1772970523435,0.16257373,67460.0,67451.0,0.00148]
[1772970524069,0.16405373,67460.0,67448.0,0.14136852]
[1772970524299,0.16257373,67460.0,67448.0,0.14284852]
[1772970524512,0.16405373,67460.0,67448.0,0.14284852]
[1772970525513,0.07411909,67459.0,67448.0,0.075611]
[1772970525672,0.16257373,67458.0,67448.0,0.07561037]
[1772970527266,0.16257373,67458.0,67442.0,0.00015]
[1772970527466,0.07412129,67457.0,67442.0,0.07428754]
[1772970527714,0.16257373,67456.0,67442.0,0.07428754]
[1772970527917,0.00148,67455.0,67443.0,0.06743752]
[1772970529620,0.07412458,67454.0,67443.0,0.14157402]
[1772970529832,0.07412458,67454.0,67443.0,0.0743365]
[1772970529986,0.07412458,67454.0,67444.0,0.06723752]
[1772970531216,0.07410723,67470.0,67446.0,0.06723752]
[1772970531415,0.07410723,67470.0,67443.0,0.0743365]
[1772970531416,0.07410723,67470.0,67450.0,0.06723752]
[1772970531658,0.16279374,67473.0,67454.0,0.06723752]
[1772970531857,0.07409763,67479.0,67454.0,0.06723752]
[1772970531858,0.07409544,67481.0,67458.0,0.06723752]
[1772970532065,0.07409544,67481.0,67462.0,0.06723752]
[1772970532066,0.0006126,67475.0,67462.0,0.06723752]
[1772970532386,0.00022001,67483.0,67467.0,0.15709809]
[1772970532562,0.00022001,67483.0,67470.0,0.06723752]
[1772970532763,0.00022001,67483.0,67472.0,0.06723752]
[1772970532958,0.0002605,67485.0,67472.0,0.06723752]
[1772970533161,0.07435144,67485.0,67472.0,0.06723752]
[1772970533425,0.11678334,67507.0,67472.0,0.06723752]
[1772970533603,0.0002605,67499.0,67476.0,0.07410042]
[1772970533769,0.0002605,67499.0,67477.0,0.00148]
[1772970533960,0.0002605,67499.0,67480.0,0.15709809]
[1772970534342,0.07407203,67502.0,67484.0,0.06723752]
[1772970534463,0.07407212,67502.0,67486.0,0.15709809]
[1772970534665,0.00148,67507.0,67489.0,0.06723752]
[1772970534864,0.00148,67507.0,67491.0,0.15709809]
[1772970534865,0.00011965,67507.0,67491.0,0.15709809]
[1772970535079,0.07418634,67507.0,67494.0,0.06723752]
[1772970535349,0.07418634,67507.0,67495.0,0.06871752]
[1772970535501,0.07418634,67507.0,67496.0,0.06871752]
[1772970535704,0.07418634,67507.0,67498.0,0.07407626]
[1772970536255,0.07418634,67507.0,67498.0,0.14131378]
[1772970537004,0.07406107,67512.0,67499.0,0.06723752]
[1772970537206,0.07981217,67511.0,67499.0,0.06735717]
[1772970537472,0.2423859,67511.0,67499.0,0.06735717]
[1772970537956,0.2423859,67511.0,67500.0,0.07407407]
[1772970537957,0.16832373,67511.0,67500.0,0.07407407]
[1772970538178,0.00575,67511.0,67501.0,0.06723752]
[1772970539131,0.00022001,67507.0,67501.0,0.06723752]
[1772970540110,0.00022001,67507.0,67503.0,0.06723752]
[1772970540305,0.00022001,67507.0,67502.0,0.07407187]
[1772970540306,0.00048051,67514.0,67505.0,0.06723752]
[1772970542132,0.00048051,67514.0,67507.0,0.06723752]
[1772970543396,0.00048051,67514.0,67508.0,0.06871752]
[1772970544051,0.00048051,67514.0,67509.0,0.07406419]
[1772970544353,0.00048051,67514.0,67510.0,0.06723752]
[1772970544897,0.07427134,67521.0,67510.0,0.06723752]
[1772970545062,0.00022001,67521.0,67510.0,0.06723752]
[1772970545965,0.07427144,67521.0,67510.0,0.06723752]
[1772970546199,0.07427144,67521.0,67512.0,0.06723752]
[1772970546200,0.00022001,67514.0,67512.0,0.06723752]
[1772970546832,0.00022001,67514.0,67512.0,0.06708752]
[1772970547047,0.00022001,67521.0,67512.0,0.06708752]
[1772970548396,0.00022001,67521.0,67513.0,0.07405981]
[1772970548715,0.00022001,67521.0,67514.0,0.06864252]
[1772970550335,0.00022001,67521.0,67514.0,0.06716252]
[1772970550522,0.00022001,67521.0,67513.0,0.07405981]
[1772970550523,0.00022001,67521.0,67517.0,0.06716252]
[1772970552029,0.00022001,67521.0,67516.0,0.07405651]
[1772970552234,0.00022001,67521.0,67516.0,0.07553651]
[1772970552440,0.00022001,67521.0,67517.0,0.06716252]
[1772970552628,0.00022001,67521.0,67518.0,0.07405432]
[1772970553830,0.00022001,67521.0,67516.0,0.00148]
[1772970554120,0.00022001,67521.0,67516.0,0.07553579]
[1772970554713,0.00022001,67521.0,67517.0,0.06716252]
[1772970555549,0.00022001,67521.0,67516.0,0.07553579]
[1772970556255,0.00022001,67521.0,67516.0,0.07405579]
[1772970557736,0.00022001,67521.0,67516.0,0.14121831]
[1772970558141,0.00022001,67521.0,67517.0,0.06716252]
[1772970559001,0.00022001,67521.0,67516.0,0.07405579]
[1772970559218,0.15964268,67520.0,67515.0,0.00148]
[1772970559416,0.00022001,67521.0,67515.0,0.07553709]
[1772970561100,0.00022001,67521.0,67515.0,0.14269961]
[1772970561682,0.00022001,67521.0,67515.0,0.07553709]
[1772970561882,0.00022001,67521.0,67516.0,0.06716252]
[1772970563869,0.00022001,67521.0,67518.0,0.06716252]
[1772970564939,0.00022001,67521.0,67517.0,0.14121794]
[1772970565133,0.00022001,67521.0,67516.0,0.14121897]
[1772970566054,0.00022001,67522.0,67517.0,0.06716252]
[1772970566666,0.00022001,67521.0,67517.0,0.06716252]
[1772970567637,0.00022001,67521.0,67516.0,0.07405645]
[1772970568684,0.00022001,67521.0,67517.0,0.07405505]
[1772970568890,0.00022001,67521.0,67518.0,0.06716252]
[1772970569481,0.00022001,67521.0,67518.0,0.06701252]
[1772970569686,0.00022001,67521.0,67516.0,0.00148]
[1772970569687,0.15964268,67520.0,67516.0,0.00148]
[1772970570761,0.23369485,67520.0,67515.0,0.07553752]
[1772970571035,0.23369485,67520.0,67515.0,0.07405752]
[1772970571336,0.23369485,67520.0,67515.0,0.07553752]
[1772970571541,0.23369485,67520.0,67515.0,0.07405752]
[1772970571749,0.07405217,67520.0,67515.0,0.07553752]
[1772970571917,0.15964268,67519.0,67512.0,0.00148]
[1772970572301,0.15964268,67519.0,67510.0,0.00148]
[1772970574319,0.07405432,67518.0,67510.0,0.00148]
[1772970577054,0.00022001,67521.0,67511.0,0.03358126]
[1772970577257,0.07427106,67521.0,67511.0,0.03358126]
[1772970578275,0.07427106,67521.0,67507.0,0.0742631]
[1772970578276,0.16162609,67520.0,67507.0,0.0002]
[1772970578493,0.16162609,67520.0,67508.0,0.00148]
[1772970579090,0.16162609,67518.0,67507.0,0.0002]
[1772970579322,0.16162609,67518.0,67505.0,0.00148]
[1772970580495,0.16162609,67518.0,67503.0,0.0002]
[1772970580724,0.16162609,67518.0,67505.0,0.00148]
[1772970580926,0.16162609,67518.0,67503.0,0.0002]
[1772970581148,0.16162609,67516.0,67504.0,0.00148]
[1772970581687,0.16162609,67516.0,67505.0,0.00148]
[1772970582243,0.04138182,67515.0,67505.0,0.00148]
[1772970583174,0.07405871,67514.0,67505.0,0.07554793]
[1772970583864,0.11544053,67514.0,67505.0,0.07554793]
[1772970584247,0.07405871,67514.0,67505.0,0.07554793]
[1772970584452,0.16162609,67512.0,67505.0,0.00148]
[1772970584634,0.04138182,67511.0,67505.0,0.00148]
[1772970584846,0.07405871,67514.0,67505.0,0.07554821]
[1772970585632,0.07405871,67514.0,67505.0,0.00148]
[1772970585838,0.11544053,67514.0,67505.0,0.00148]
[1772970586238,0.11544053,67514.0,67505.0,0.00168]
[1772970586488,0.11544053,67514.0,67505.0,0.07574846]
[1772970588288,0.07405871,67514.0,67505.0,0.07574846]
[1772970589224,0.04138182,67513.0,67505.0,0.00168]
[1772970589633,0.04138182,67513.0,67505.0,0.07574808]
[1772970590690,0.0740609,67512.0,67505.0,0.00168]
[1772970590899,0.04138182,67511.0,67505.0,0.00168]
[1772970591111,0.16162609,67510.0,67505.0,0.07574829]
[1772970591359,0.04138182,67509.0,67505.0,0.07574829]
[1772970591675,0.04138182,67509.0,67506.0,0.00148]
[1772970592943,0.07405871,67514.0,67506.0,0.07554722]
[1772970593164,0.0740574,67516.0,67506.0,0.07554722]
[1772970594002,0.07405651,67518.0,67506.0,0.07554722]
[1772970594353,0.00022001,67519.0,67506.0,0.07554722]
[1772970594563,0.00022001,67519.0,67506.0,0.24011832]
[1772970594742,0.00022001,67519.0,67507.0,0.1645711]
[1772970594938,0.00022001,67519.0,67508.0,0.07406529]
[1772970601330,0.00022001,67526.0,67508.0,0.07406529]
[1772970601537,0.0740412,67530.0,67509.0,0.1645711]
[1772970602132,0.04138182,67531.0,67509.0,0.1645711]
[1772970602133,1e-08,67527.0,67509.0,0.1645711]
[1772970602501,1e-08,67528.0,67509.0,0.1645711]
[1772970602630,0.00022001,67534.0,67509.0,0.16556835]
[1772970603271,0.00022001,67534.0,67511.0,0.16556835]
[1772970603472,0.00022001,67534.0,67510.0,0.0740631]
[1772970603473,0.00022001,67534.0,67513.0,0.16556835]
[1772970603672,0.04138182,67532.0,67513.0,0.16556835]
[1772970603888,0.04138182,67531.0,67512.0,0.00148]
[1772970604119,0.04138182,67531.0,67512.0,0.15841099]
[1772970604324,0.04138182,67531.0,67514.0,0.15841099]
[1772970604525,0.00022001,67526.0,67514.0,0.15841099]
[1772970604717,0.04138182,67531.0,67515.0,0.00148]
[1772970604915,0.04138182,67531.0,67515.0,0.15989099]
[1772970605449,0.04138182,67531.0,67516.0,0.07405651]
[1772970605643,0.04138182,67531.0,67516.0,0.07553651]
[1772970606313,0.04138182,67531.0,67517.0,0.00148]
[1772970606943,0.04151542,67531.0,67517.0,0.00148]
[1772970607141,0.0001336,67531.0,67517.0,0.00148]
[1772970607544,0.04151542,67531.0,67517.0,0.00148]
[1772970607722,0.04151542,67531.0,67518.0,0.07405432]
[1772970611273,0.04173543,67531.0,67518.0,0.07405432]
[1772970612639,0.15472028,67527.0,67519.0,0.00148]
[1772970612855,0.15472028,67523.0,67506.0,0.07426702]
[1772970613043,0.00148,67526.0,67507.0,0.00148]
[1772970613044,0.15472028,67519.0,67507.0,0.00148]
[1772970613242,0.15472028,67517.0,67507.0,0.00148]
[1772970613449,0.04138182,67514.0,67507.0,0.00148]
[1772970613703,0.04138182,67514.0,67508.0,0.00148]
[1772970614229,0.04138182,67514.0,67509.0,0.00148]
[1772970614606,0.04138182,67514.0,67510.0,0.0742131]
[1772970617230,0.04138182,67513.0,67509.0,0.00148]
[1772970617733,0.04138182,67513.0,67507.0,0.07406632]
[1772970617908,0.04138182,67513.0,67508.0,0.00148]
[1772970618077,0.04138182,67511.0,67508.0,0.00148]
[1772970618277,0.04138182,67509.0,67503.0,0.0002]
[1772970618735,0.04138182,67509.0,67504.0,0.00148]
[1772970618736,0.15472028,67509.0,67504.0,0.00148]
[1772970618940,0.15472028,67509.0,67503.0,0.0002]
[1772970618941,0.07406639,67507.0,67503.0,0.0002]
[1772970619112,0.04138182,67507.0,67505.0,0.00148]
[1772970619561,0.04138182,67507.0,67506.0,0.00148]
[1772970620045,0.15472028,67506.0,67504.0,0.00148]
[1772970620204,0.04138182,67505.0,67504.0,0.00148]
[1772970621400,0.07406537,67508.0,67504.0,0.00148]
[1772970621595,0.001,67505.0,67504.0,0.00148]
[1772970622713,0.07406537,67508.0,67504.0,0.00148]
[1772970623424,0.15472028,67511.0,67504.0,0.00148]
[1772970623653,0.04138182,67508.0,67504.0,0.00148]
[1772970623815,0.04138182,67507.0,67504.0,0.00148]
[1772970624020,0.04138182,67511.0,67504.0,0.00148]
[1772970624423,0.04138182,67511.0,67504.0,0.00030552]
[1772970624639,0.04138182,67511.0,67504.0,0.00013778]
[1772970625038,0.04138182,67511.0,67504.0,0.00033778]
[1772970625659,0.0740631,67510.0,67504.0,0.00033778]
[1772970625872,0.11544492,67510.0,67504.0,0.00033778]
[1772970632741,0.11566493,67510.0,67504.0,0.00033778]
[1772970634949,0.07428311,67510.0,67504.0,0.00033778]
[1772970635801,0.04138182,67509.0,67504.0,0.00033778]
[1772970637323,0.04138182,67507.0,67504.0,0.00033778]
[1772970638093,0.04138182,67507.0,67500.0,0.07467196]
[1772970638405,0.1571571,67507.0,67505.0,0.00148]
[1772970638723,0.07406529,67508.0,67505.0,0.00148]
[1772970638724,0.04138182,67506.0,67505.0,0.00148]
[1772970639121,0.11544711,67508.0,67505.0,0.00148]
[1772970639322,0.04138182,67507.0,67505.0,0.00148]
[1772970639918,0.001,67506.0,67505.0,0.00148]
[1772970640123,0.04238182,67506.0,67505.0,0.00148]
[1772970640321,0.04138182,67506.0,67505.0,0.00148]
[1772970641167,0.04238182,67506.0,67505.0,0.00148]
[1772970642302,0.01831205,67506.0,67505.0,0.00148]
[1772970642867,0.07506749,67506.0,67505.0,0.00148]
[1772970643073,0.10441442,67506.0,67505.0,0.00148]
[1772970643605,0.07506749,67506.0,67470.0,0.71776089]
[1772970643827,0.07506749,67506.0,67430.0,0.00575]
[1772970643828,0.02934693,67463.0,67430.0,0.001304]
[1772970644033,0.00773369,67464.0,67419.0,0.0001263]
[1772970644034,0.702917,67425.0,67419.0,0.0001263]
[1772970644232,0.14903362,67424.0,67420.0,0.12510466]
[1772970644444,0.14755362,67423.0,67411.0,0.27960865]
[1772970644644,0.0201278,67420.0,67412.0,0.16490469]
[1772970644857,0.14755362,67419.0,67412.0,0.16490469]
[1772970645072,1e-08,67420.0,67411.0,0.07417113]
[1772970645277,0.21990994,67434.0,67418.0,0.16490469]
[1772970645404,0.17772,67449.0,67418.0,0.16490469]
[1772970645405,0.02934693,67432.0,67418.0,0.16490469]
[1772970645616,0.1381581,67432.0,67415.0,0.00538357]
[1772970645812,0.07562987,67431.0,67416.0,0.07416637]
[1772970646025,0.1049768,67431.0,67416.0,0.07416637]
[1772970647491,0.02934693,67430.0,67416.0,0.07416637]
[1772970647865,0.10349834,67430.0,67416.0,0.07416637]
[1772970648665,0.1571571,67429.0,67411.0,0.07457086]
[1772970648859,0.07415141,67430.0,67412.0,0.07417077]
[1772970648860,0.02934693,67426.0,67412.0,0.07417077]
[1772970649084,0.02934693,67423.0,67411.0,0.07457074]
[1772970649462,0.00148,67422.0,67411.0,0.07457074]
[1772970649774,0.07416196,67420.0,67411.0,0.00039917]
[1772970649995,0.01301222,67419.0,67411.0,0.00039917]
[1772970650195,0.02934693,67418.0,67406.0,0.07417661]
[1772970650394,0.02934693,67418.0,67406.0,0.07457561]
[1772970650395,0.01295396,67417.0,67406.0,0.07457561]
[1772970650736,0.00148,67416.0,67409.0,0.01171701]
[1772970650947,0.00148,67415.0,67409.0,0.01171701]
[1772970651163,0.00148,67415.0,67414.0,0.0002]
[1772970652418,0.00148,67415.0,67407.0,0.0002]
[1772970652800,0.00148,67414.0,67407.0,0.0002]
[1772970653111,0.07415757,67424.0,67410.0,0.16490469]
[1772970653303,0.00148,67423.0,67408.0,0.01317942]
[1772970653511,0.03082693,67423.0,67408.0,0.01317942]
[1772970653713,0.07414368,67437.0,67408.0,0.01317942]
[1772970653857,0.00148,67431.0,67413.0,0.01317942]
[1772970654057,0.00148,67430.0,67416.0,0.16490469]
[1772970654293,0.11749195,67430.0,67419.0,0.01368669]
[1772970654690,0.11601195,67430.0,67419.0,0.01368669]
[1772970654902,0.00148,67429.0,67419.0,0.01368669]
[1772970655107,0.00148,67428.0,67419.0,0.01368669]
[1772970655508,0.00148,67427.0,67419.0,0.01368669]
[1772970657149,0.00148,67427.0,67420.0,0.07416196]
[1772970657448,0.14498074,67430.0,67420.0,0.07416196]
[1772970657647,0.14646074,67429.0,67420.0,0.07416196]
[1772970657855,0.14498074,67428.0,67420.0,0.07416196]
[1772970658054,0.00148,67429.0,67420.0,0.07416196]
[1772970658232,0.14497417,67428.0,67420.0,0.07416196]
[1772970658552,0.00133,67429.0,67420.0,0.07416196]
[1772970658732,0.14497433,67428.0,67420.0,0.07416196]
[1772970658908,0.00133,67429.0,67420.0,0.07416196]
[1772970659114,0.00133,67429.0,67419.0,0.0002]
[1772970659313,0.14628879,67429.0,67419.0,0.0002]
[1772970659560,0.00133,67429.0,67419.0,0.0002]
[1772970660402,0.22323873,67442.0,67421.0,0.01670146]
[1772970660629,0.00148,67441.0,67424.0,0.16490469]
[1772970660838,0.00148,67440.0,67425.0,0.01670146]
[1772970661010,0.00148,67439.0,67425.0,0.01670146]
[1772970661245,0.02934693,67441.0,67426.0,0.07415537]
[1772970661455,0.00148,67440.0,67430.0,0.16490469]
[1772970661653,0.07413378,67446.0,67432.0,0.0245909]
[1772970661859,0.00148,67445.0,67433.0,0.0245909]
[1772970661981,0.00148,67444.0,67433.0,0.0245909]
[1772970662396,0.00148,67444.0,67433.0,0.0176339]
[1772970662602,0.00148,67444.0,67433.0,0.01775336]
[1772970663190,0.07413667,67443.0,67433.0,0.00011946]
[1772970663385,0.07413667,67443.0,67433.0,0.07426686]
[1772970664042,0.00148,67442.0,67433.0,0.07426686]
[1772970665472,0.00148,67442.0,67432.0,0.11203849]
[1772970665820,0.07561781,67442.0,67432.0,0.11203849]
[1772970667068,0.07561781,67442.0,67433.0,0.0012]
[1772970667310,0.00148,67441.0,67433.0,0.0012]
[1772970667695,0.00148,67441.0,67434.0,0.07414657]
[1772970668098,0.07413851,67442.0,67434.0,0.07414657]
[1772970668298,0.00148,67440.0,67434.0,0.07414657]
[1772970669675,0.22379435,67457.0,67435.0,0.22728334]
[1772970669890,0.00597001,67457.0,67438.0,0.03984691]
[1772970670106,0.0002974,67460.0,67434.0,0.07414657]
[1772970670330,0.00148,67459.0,67437.0,0.18743643]
[1772970670458,0.00148,67459.0,67440.0,0.03984691]
[1772970670810,0.00148,67458.0,67444.0,0.03984691]
[1772970671008,0.00148,67457.0,67445.0,0.03984691]
[1772970671777,0.0002974,67460.0,67447.0,0.03984691]
[1772970671995,0.00148,67459.0,67447.0,0.03984691]
[1772970672381,0.14655727,67458.0,67447.0,0.03984691]
[1772970672622,0.14655727,67457.0,67447.0,0.03984691]
[1772970672821,0.00148,67459.0,67447.0,0.03984691]
[1772970673136,0.00022001,67457.0,67447.0,0.03984691]
[1772970673733,0.00022001,67457.0,67448.0,0.07413118]
[1772970673896,0.00022001,67457.0,67448.0,0.11397809]
[1772970674446,0.00022001,67457.0,67448.0,0.07413118]
[1772970674447,0.26787855,67456.0,67448.0,0.07413118]
[1772970674648,0.04082064,67456.0,67448.0,0.07413118]
[1772970675147,0.03934064,67456.0,67448.0,0.07413118]
[1772970675257,0.00148,67455.0,67448.0,0.07413118]
[1772970676277,0.00148,67455.0,67446.0,0.07413118]
[1772970676477,0.00148,67455.0,67447.0,0.03984691]
[1772970677158,0.00133,67455.0,67447.0,0.03984691]
[1772970677973,0.19397617,67457.0,67446.0,0.07413118]
[1772970678176,0.00148,67456.0,67446.0,0.07413118]
[1772970678761,0.00148,67456.0,67444.0,0.07413447]
[1772970678970,0.04082064,67456.0,67444.0,0.07413447]
[1772970679407,0.03934064,67454.0,67438.0,0.07414151]
[1772970679613,0.03934064,67451.0,67446.0,0.11785596]
[1772970679824,0.00148,67450.0,67439.0,0.17678395]
[1772970680030,0.07412253,67456.0,67440.0,0.03984691]
[1772970680244,0.00148,67455.0,67444.0,0.03984691]
[1772970680668,0.00022001,67456.0,67444.0,0.03984691]
[1772970680877,0.00148,67454.0,67445.0,0.11398138]
[1772970681720,2.45e-06,67454.0,67445.0,0.11398138]
[1772970682872,0.00022001,67457.0,67446.0,0.18743643]
[1772970683098,0.00148,67456.0,67447.0,0.03984691]
[1772970683894,0.00148,67455.0,67447.0,0.03984691]
[1772970684300,0.00022001,67457.0,67447.0,0.03984691]
[1772970684496,0.00148,67456.0,67447.0,0.03984691]
[1772970684945,0.07560307,67456.0,67447.0,0.11397809]
[1772970685917,0.00148,67456.0,67447.0,0.11397809]
[1772970686755,0.00148,67455.0,67447.0,0.11397809]
[1772970686981,0.0741147,67463.0,67448.0,0.03984691]
[1772970687213,0.0741147,67463.0,67450.0,0.03984691]
[1772970687381,0.00148,67462.0,67450.0,0.03984691]
[1772970688374,0.0741147,67463.0,67445.0,0.13978078]
[1772970688724,0.03934064,67459.0,67446.0,0.07413118]
[1772970688900,0.00022001,67456.0,67439.0,0.07414107]
[1772970689077,0.04082064,67455.0,67439.0,0.07414107]
[1772970689280,0.04082064,67455.0,67440.0,0.03984691]
[1772970689482,0.03934064,67455.0,67440.0,0.03984691]
[1772970689683,0.00148,67454.0,67440.0,0.03984691]
[1772970690139,0.00148,67453.0,67440.0,0.03984691]
[1772970690348,0.00148,67453.0,67436.0,0.07414372]
[1772970690349,0.19375616,67452.0,67429.0,0.07415119]
[1772970690527,0.03934064,67449.0,67434.0,0.07426612]
[1772970690669,0.07434327,67456.0,67434.0,0.07426612]
[1772970690872,0.03934064,67451.0,67434.0,0.07426612]
[1772970691101,0.03934064,67449.0,67434.0,0.07426612]
[1772970691897,0.04082064,67448.0,67434.0,0.07426612]
[1772970692325,0.03934064,67448.0,67434.0,0.07426612]